fUSD/lending_fUSD_20260321
["ID","MTS","AMOUNT","RATE_DAILY","PERIOD"]
[408694506,1774133443574,-500.0,0.00015448,2]
[408694507,1774133443583,-266.24818512,0.00015448,2]
[408694508,1774133443592,-500.0,0.00015448,2]
[408694509,1774133443601,-500.0,0.00015448,2]
[408694510,1774133443611,-693.0,0.00015448,2]
[408694511,1774133443620,-409.47795526,0.00015448,2]
[408694512,1774133443629,-693.0,0.00015448,2]
[408694513,1774133443639,-693.0,0.00015448,2]
[408694514,1774133443649,-715.0,0.00015448,2]
[408694515,1774133443658,-500.0,0.00015448,2]
[408694516,1774133443667,-500.0,0.00015448,2]
[408694517,1774133443677,-500.0,0.00015448,2]
[408694518,1774133443686,-500.0,0.00015448,2]
[408694519,1774133443695,-500.0,0.00015448,2]
[408694520,1774133443704,-500.0,0.00015448,2]
[408694521,1774133443713,-577.95065984,0.00015448,2]
[408694522,1774133443722,-639.0,0.00015449,2]
[408694523,1774133443731,-639.0,0.0001545,2]
[408694524,1774133443740,-809.24686228,0.00015489,2]
[408694525,1774133443749,-639.0,0.00015513,2]
[408694526,1774133443758,-419.726578,0.00015523,7]
[408694528,1774133443768,-329.994409,0.00015523,7]
[408694531,1774133443778,-243.464134,0.00015523,7]
[408694534,1774133443788,-160.0,0.00015523,7]
[408694537,1774133443797,-587.0,0.00015543,2]
[408694539,1774133443807,-362.09636652,0.00015561,2]
[408694540,1774133443816,-1029.0,0.00015567,2]
[408694541,1774133443826,-6741.69937359,0.00015571,2]
[408694542,1774133443836,-639.0,0.00015576,2]
[408694543,1774133443846,-2555.34785113,0.0001558,2]
[408694544,1774133443856,-639.0,0.00015581,2]
[408694545,1774133443866,-1121.83,0.00015582,2]
[408694546,1774133443877,-1900.0,0.000156,5]
[408694547,1774133443886,-10000.0,0.00015622,2]
[408694548,1774133443896,-2351.0,0.00015636,2]
[408694549,1774133443906,-1568.0,0.0001568,2]
[408694550,1774133443916,-161.0,0.0001568,2]
[408694551,1774133443926,-464.48,0.000157,2]
[408694552,1774133443937,-1067.95,0.000157,2]
[408694553,1774133443948,-300.0,0.000157,5]
[408694554,1774133443958,-639.0,0.00015733,2]
[408694555,1774133443968,-300.0,0.000158,5]
[408694556,1774133443979,-639.0,0.0001582,2]
[408694557,1774133443988,-639.0,0.0001582,2]
[408694558,1774133443998,-48121.4017378,0.0001584,2]
[408694559,1774133444008,-1121.83,0.00015856,2]
[408694560,1774133444019,-639.0,0.00015869,2]
[408694561,1774133444029,-500.0,0.00015872,2]
[408694562,1774133444039,-2000.0,0.0001589,2]
[408694563,1774133444049,-476.16518659,0.00015892,2]
[408694564,1774133444059,-397.83097349,0.000159,2]
[408694565,1774133444068,-872.9617141,0.000159,2]
[408694566,1774133444078,-899.14535473,0.000159,2]
[408694567,1774133444087,-1100.17,0.000159,2]
[408694568,1774133444096,-219.47,0.000159,2]
[408694569,1774133444106,-810.43,0.000159,2]
[408694570,1774133444115,-159.84756314,0.000159,2]
[408694571,1774133444124,-300.0,0.000159,5]
[408694572,1774133444134,-2555.34785113,0.000159,2]
[408694573,1774133444143,-809.24686228,0.000159,2]
[408694574,1774133444152,-219.64565239,0.000159,2]
[408694575,1774133444162,-13972.20897816,0.000159,2]
[408694576,1774133444171,-2022.0,0.000159,2]
[408694577,1774133444181,-2270.0,0.000159,5]
[408694578,1774133444190,-1818.0,0.000159,5]
[408694579,1774133444199,-639.0,0.00015941,2]
[408694580,1774133444208,-639.0,0.00015965,2]
[408694581,1774133444218,-500.0,0.00015973,2]
[408694582,1774133444227,-500.0,0.00015973,2]
[408694583,1774133444237,-500.0,0.00015973,2]
[408694584,1774133444246,-500.0,0.00015973,2]
[408694585,1774133444255,-501.28770509,0.00015973,2]
[408694586,1774133444265,-500.0,0.00015973,2]
[408694587,1774133444275,-500.0,0.00015973,2]
[408694588,1774133444284,-500.0,0.00015973,2]
[408694589,1774133444294,-500.0,0.00015973,2]
[408694590,1774133444304,-500.0,0.00015973,2]
[408694591,1774133444313,-399.90719368,0.00015973,2]
[408694592,1774133444323,-500.0,0.00015973,2]
[408694593,1774133444332,-226.57620935,0.00015973,2]
[408694594,1774133444342,-500.0,0.00015973,2]
[408694595,1774133444352,-500.0,0.00015973,2]
[408694596,1774133444361,-500.0,0.00015973,2]
[408694597,1774133444372,-500.0,0.00015973,2]
[408694598,1774133444382,-500.0,0.00015973,2]
[408694599,1774133444391,-500.0,0.00015973,2]
[408694600,1774133444401,-500.0,0.00015973,2]
[408694601,1774133444410,-500.0,0.00015973,2]
[408694602,1774133444420,-500.0,0.00015973,2]
[408694603,1774133444430,-500.0,0.00015973,2]
[408694604,1774133444439,-500.0,0.00015973,2]
[408694605,1774133444449,-500.0,0.00015973,2]
[408694606,1774133444458,-500.0,0.00015973,2]
[408694607,1774133444467,-500.0,0.00015973,2]
[408694608,1774133444477,-500.0,0.00015973,2]
[408694609,1774133444486,-500.0,0.00015973,2]
[408694610,1774133444495,-500.0,0.00015973,2]
[408694611,1774133444505,-500.0,0.00015973,2]
[408694612,1774133444514,-500.0,0.00015973,2]
[408694613,1774133444524,-500.0,0.00015973,2]
[408694614,1774133444692,-500.0,0.00015973,2]
[408694615,1774133444702,-500.0,0.00015973,2]
[408694616,1774133444711,-500.0,0.00015973,2]
[408694617,1774133444721,-500.0,0.00015973,2]
[408694618,1774133444730,-162.0,0.0001599,2]
[408694619,1774133444739,-163.0,0.0001599,2]
[408694620,1774133444749,-9298.6473525,0.00015991,2]
[408694621,1774133444759,-1133788.2551166,0.00015992,2]
[408694622,1774133444769,-147612.2930919,0.00015992,2]
[408694623,1774133444778,-281.51699,0.00015992,2]
[408694624,1774133444788,-1264.078394,0.00015992,2]
[408694625,1774133444797,-281.51699,0.00015992,2]
[408694626,1774133444806,-1264.078394,0.00015992,2]
[408694627,1774133444816,-281.51699,0.00015992,2]
[408694628,1774133444826,-1264.078394,0.00015992,2]
[408694629,1774133444836,-281.51699,0.00015992,2]
[408694630,1774133444846,-1264.078394,0.00015992,2]
[408694631,1774133444855,-151.0,0.00015997,2]
[408694632,1774133444863,-4154793.37268599,0.00016,2]
[408694633,1774133445004,-380.30947352,0.00016,2]
[408694634,1774133445016,-3565.18647994,0.00016,2]
[408694635,1774133445182,-170.566692,0.00015139,7]
[408694636,1774133445192,-6193.52021139,0.000159,2]
[408694637,1774133445205,-290.0,0.000159,2]
[408694651,1774133446111,-258.1791622,0.000159,2]
[408694653,1774133446121,-8010.02160925,0.00016,2]
[408694666,1774133446253,-9808.16646871,0.00016,2]
[408694669,1774133446267,-800.0,0.00016,2]
[408694676,1774133493361,2456.568,0.00012665,2]
[408694677,1774133493503,158.933,0.00012665,2]
[408694678,1774133500317,187.83591298,0.00012922,2]
[408694679,1774133500366,457.63186321,0.00012922,2]
[408694680,1774133521175,300.0,0.00012922,2]
[408694681,1774133581492,300.0,0.00012922,2]
[408694682,1774133582549,700.05144007,0.00012824,2]
[408694683,1774133586552,241.0984,0.0001292,2]
[408694684,1774133596673,500.0,0.00012922,2]
[408694685,1774133596951,500.0,0.00012922,2]
[408694686,1774133597338,500.0,0.00012922,2]
[408694687,1774133602671,500.0,0.00012922,2]
[408694688,1774133603029,500.0,0.00012922,2]
[408694689,1774133614595,2555.34785116,0.00012823,2]
[408694690,1774133622212,142.54353258,0.00012823,2]
[408694691,1774133622235,2773.58426742,0.00012823,2]
[408694692,1774133629259,500.0,0.00012922,2]
[408694693,1774133629956,234.87,0.00012923,2]
[408694694,1774133642651,150.0,0.00012922,2]
[408694695,1774133642887,300.0,0.00012922,2]
[408694696,1774133645828,630.65132795,0.00012823,2]
[408694697,1774133665668,500.0,0.00012922,2]
[408694698,1774133665699,500.0,0.00012922,2]
[408694699,1774133665726,500.0,0.00012922,2]
[408694700,1774133665758,500.0,0.00012922,2]
[408694701,1774133665789,500.0,0.00012922,2]
[408694702,1774133666003,500.0,0.00012922,2]
[408694703,1774133666036,500.0,0.00012922,2]
[408694704,1774133666069,500.0,0.00012922,2]
[408694705,1774133666103,500.0,0.00012922,2]
[408694706,1774133666133,500.0,0.00012922,2]
[408694707,1774133666163,410.90440463,0.00012922,2]
[408694708,1774133666186,89.09559537,0.00012922,2]
[408694709,1774133666224,500.0,0.00012922,2]
[408694710,1774133666251,500.0,0.00012922,2]
[408694711,1774133666279,500.0,0.00012922,2]
[408694712,1774133666307,500.0,0.00012922,2]
[408694713,1774133666346,500.0,0.00012922,2]
[408694714,1774133666375,500.0,0.00012922,2]
[408694715,1774133666404,500.0,0.00012922,2]
[408694716,1774133666443,500.0,0.00012922,2]
[408694717,1774133666493,500.0,0.00012922,2]
[408694718,1774133666525,500.0,0.00012922,2]
[408694719,1774133666556,500.0,0.00012922,2]
[408694720,1774133666596,500.0,0.00012922,2]
[408694721,1774133666624,500.0,0.00012922,2]
[408694722,1774133666660,500.0,0.00012922,2]
[408694723,1774133666697,500.0,0.00012922,2]
[408694724,1774133666725,500.0,0.00012922,2]
[408694725,1774133666753,500.0,0.00012922,2]
[408694726,1774133666780,500.0,0.00012922,2]
[408694727,1774133666814,500.0,0.00012922,2]
[408694728,1774133666845,410.91440463,0.00012922,2]
[408694729,1774133666869,89.08559537,0.00012922,2]
[408694730,1774133666898,500.0,0.00012922,2]
[408694731,1774133666929,500.0,0.00012922,2]
[408694732,1774133666957,500.0,0.00012922,2]
[408694733,1774133666990,500.0,0.00012922,2]
[408694734,1774133667029,500.0,0.00012922,2]
[408694735,1774133667094,295.20020974,0.00012922,2]
[408694736,1774133667196,500.0,0.00012922,2]
[408694737,1774133667311,500.0,0.00012922,2]
[408694738,1774133686643,500.0,0.00012922,2]
[408694739,1774133686676,500.0,0.00012922,2]
[408694740,1774133686709,500.0,0.00012922,2]
[408694741,1774133686745,500.0,0.00012922,2]
[408694742,1774133686773,500.0,0.00012922,2]
[408694743,1774133686804,500.0,0.00012922,2]
[408694744,1774133686849,500.0,0.00012922,2]
[408694745,1774133686881,500.0,0.00012922,2]
[408694746,1774133686910,500.0,0.00012922,2]
[408694747,1774133686942,500.0,0.00012922,2]
[408694748,1774133686973,500.0,0.00012922,2]
[408694749,1774133687004,500.0,0.00012922,2]
[408694750,1774133687037,115.72419489,0.00012922,2]
[408694751,1774133687062,384.27580511,0.00012922,2]
[408694752,1774133687094,500.0,0.00012922,2]
[408694753,1774133687132,500.0,0.00012922,2]
[408694754,1774133687162,500.0,0.00012922,2]
[408694755,1774133687194,500.0,0.00012922,2]
[408694756,1774133687226,500.0,0.00012922,2]
[408694757,1774133687262,500.0,0.00012922,2]
[408694758,1774133692486,809.24686228,0.00012823,2]
[408694759,1774133701641,1200.0,0.00012922,2]
[408694760,1774133707792,4606.48733261,7.945e-05,2]
[408694761,1774133707814,1593.89706039,7.945e-05,2]
[408694762,1774133712947,466.70096004,0.00012823,2]
[408694763,1774133738962,500.0,0.00012922,2]
[408694764,1774133739013,500.0,0.00012922,2]
[408694765,1774133739079,400.04039485,0.00012922,2]
[408694766,1774133757542,6067.5294363,0.00012823,2]
[408694767,1774133758767,407.02455879,0.00012922,2]
[408694768,1774133761453,300.0,0.00012922,2]
[408694769,1774133773629,601.63581947,0.00012823,2]
[408694770,1774133796874,434.91719115,0.00012922,2]
[408694771,1774133797807,322.1616394,0.00012922,2]
[408694772,1774133797837,177.8383606,0.00012922,2]
[408694773,1774133797872,500.0,0.00012922,2]
[408694774,1774133797921,500.0,0.00012922,2]
[408694775,1774133798038,500.0,0.00012922,2]
[408694776,1774133798090,274.52002098,0.00012922,2]
[408694777,1774133798218,500.0,0.00012922,2]
[408694778,1774133814190,7547.65161842,0.00012823,2]
[408694779,1774133814212,6424.55735974,0.00012823,2]
[408694780,1774133821191,300.0,0.00012922,2]
[408694781,1774133821885,287.74314858,0.00012923,2]
[408694782,1774133822330,150.0,0.00012922,2]
[408694783,1774133822786,300.0,0.00012922,2]
[408694784,1774133839737,200.0,0.00012915,2]
[408694785,1774133842429,500.0,0.00012922,2]
[408694786,1774133842671,500.0,0.00012922,2]
[408694787,1774133842700,151.0,0.00012915,2]
[408694788,1774133842732,504.34128297,0.00012922,2]
[408694789,1774133843198,311.13397336,0.00012823,2]
[408694790,1774133843624,151.0,0.00012915,2]
[408694791,1774133844276,151.0,0.00012915,2]
[408694792,1774133844885,151.0,0.00012915,2]
[408694793,1774133845610,151.0,0.00012915,2]
[408694794,1774133846236,151.0,0.00012915,2]
[408694795,1774133846541,173.42751099,0.00012915,2]
[408694796,1774133846616,500.0,0.00012915,2]
[408694797,1774133846928,151.0,0.00012915,2]
[408694798,1774133847215,500.0,0.00012915,2]
[408694799,1774133847532,151.0,0.00012915,2]
[408694800,1774133847817,414.35315363,0.00012915,2]
[408694801,1774133848153,151.0,0.00012915,2]
[408694802,1774133848752,151.0,0.00012915,2]
[408694803,1774133849367,151.0,0.00012915,2]
[408694804,1774133849979,151.0,0.00012915,2]
[408694805,1774133855526,151.0,0.00012915,2]
[408694806,1774133856278,151.0,0.00012915,2]
[408694807,1774133856804,151.0,0.00012915,2]
[408694808,1774133857527,151.0,0.00012915,2]
[408694809,1774133858127,151.0,0.00012915,2]
[408694810,1774133858762,151.0,0.00012915,2]
[408694811,1774133859391,151.0,0.00012915,2]
[408694812,1774133860005,151.0,0.00012915,2]
[408694813,1774133860625,151.0,0.00012915,2]
[408694814,1774133861259,151.0,0.00012915,2]
[408694815,1774133861856,151.0,0.00012915,2]
[408694816,1774133862456,151.0,0.00012915,2]
[408694817,1774133863085,151.0,0.00012915,2]
[408694818,1774133863682,151.0,0.00012915,2]
[408694819,1774133864305,151.0,0.00012915,2]
[408694820,1774133864980,151.0,0.00012915,2]
[408694821,1774133865595,151.0,0.00012915,2]
[408694822,1774133866209,151.0,0.00012915,2]
[408694823,1774133866807,151.0,0.00012915,2]
[408694824,1774133867598,151.0,0.00012915,2]
[408694825,1774133881199,300.0,0.00012922,2]
[408694826,1774133886357,219.6456524,0.00012823,2]
[408694827,1774133932981,7.36527807,0.00012823,2]
[408694828,1774133933004,750.86759968,0.00012823,2]
[408694829,1774133934321,9249.14240032,0.00012823,2]
[408694830,1774133934345,65.66358512,0.00012823,2]
[408694831,1774133941129,300.0,0.00012922,2]
[408694832,1774133944176,9634.34641488,0.00012913,2]
[408694833,1774133944198,10000.01,0.00012913,2]
[408694834,1774133944221,6864.7839374,0.00012913,2]
[408694835,1774133949589,1000.0,0.00012823,2]
[408694836,1774134106781,401.0905463,0.00012723,2]
[408694837,1774134224758,10000.0,0.0001219,2]
[408694838,1774134320655,500.0,0.00012129,2]
[408694839,1774134429810,200.0,0.000125,4]
[408694840,1774134431129,-5000.0,0.00012779,2]
[408694841,1774134431150,-300.0,0.00012782,2]
[408694842,1774134431170,-300.0,0.00012785,2]
[408694843,1774134431190,-300.0,0.00012785,2]
[408694844,1774134431210,-5000.0,0.00012786,2]
[408694845,1774134431445,-300.0,0.0001279,2]
[408694846,1774134431468,-250.0,0.00012798,2]
[408694847,1774134431489,-5000.0,0.000128,2]
[408694848,1774134431510,-1200.0,0.00012821,2]
[408694849,1774134431530,-1001.50433704,0.00012822,2]
[408694850,1774134431550,-1200.0,0.00012822,2]
[408694851,1774134431569,-150.0,0.00012822,2]
[408694852,1774134431590,-255.0,0.00012823,2]
[408694853,1774134431610,-515.88499865,0.00012823,2]
[408694854,1774134431646,2515.81032644,0.00012733,2]
[408694855,1774134431901,500.0,0.000126,4]
[408694856,1774134434024,700.0,0.000127,4]
[408694857,1774134464180,802.1810926,0.00012723,2]
[408694858,1774134525093,-1000.0,0.000128,4]
[408694859,1774134525120,-1200.0,0.000129,4]
[408694860,1774134525154,-1977.0,0.00014808,5]
[408694861,1774134525182,-160.0,0.00015117,7]
[408694862,1774134525208,-171.090904,0.00015139,7]
[408694863,1774134525234,-465.296473,0.00015139,7]
[408694864,1774134525263,-160.0,0.00015139,7]
[408694865,1774134525294,-240.190667,0.00015139,7]
[408694866,1774134525321,-160.0,0.00015139,7]
[408694867,1774134525352,-440.84705,0.00015139,7]
[408694868,1774134525388,-160.0,0.00015523,7]
[408694869,1774134525414,-282.642236,0.00015523,7]
[408694870,1774134525446,-200.0,0.000157,5]
[408694871,1774134525473,-200.0,0.000158,5]
[408694872,1774134525503,-200.0,0.000159,5]
[408694873,1774134525528,-1457.0,0.000159,5]
[408694874,1774134525565,-500.0,0.00016,5]
[408694875,1774134525590,-500.0,0.00016,5]
[408694876,1774134525619,-500.0,0.00016,5]
[408694877,1774134525645,-500.0,0.00016,5]
[408694878,1774134525671,-184.26872552,0.00016,5]
[408694879,1774134525698,-500.0,0.00016,5]
[408694880,1774134525725,-500.0,0.00016,5]
[408694881,1774134525751,-500.0,0.00016,5]
[408694882,1774134525777,-500.0,0.00016,5]
[408694883,1774134525808,-5000.00672801,0.000162,5]
[408694884,1774134525838,-300.0,0.00016438,3]
[408694885,1774134525863,-300.0,0.00016438,3]
[408694886,1774134525887,-300.0,0.00016438,3]
[408694887,1774134525912,-300.0,0.00016438,3]
[408694888,1774134525937,-300.0,0.00016438,3]
[408694889,1774134525971,-150.0,0.0001683,14]
[408694890,1774134525996,-163.0,0.000169,20]
[408694891,1774134526025,-2509.3157121,0.000175,3]
[408694892,1774134526050,-150.25811759,0.00017765,5]
[408694893,1774134526077,-185.853994,0.00018167,7]
[408694894,1774134526103,-757.804404,0.00018167,7]
[408694895,1774134526128,-174.199723,0.00018167,7]
[408694896,1774134526156,-150.0,0.00018729,30]
[408694897,1774134526191,-3000.0,0.00019178,7]
[408694898,1774134526221,-1000.0,0.0002,7]
[408694899,1774134526246,-200.0,0.0002,10]
[408694900,1774134526270,-300.0,0.000201,10]
[408694901,1774134526296,-175.58,0.000207,7]
[408694902,1774134526325,-216.412563,0.00022169,14]
[408694903,1774134526351,-71709.23270278,0.000225,7]
[408694904,1774134549006,10000.01,0.0001224,2]
[408694905,1774134551253,2000.0,0.0001224,2]
[408694906,1774134579412,1700.16,6.11e-05,2]
[408694907,1774134579800,1700.16,6.432e-05,2]
[408694908,1774134580012,1599.69,6.753e-05,2]
[408694909,1774134580039,100.47,6.753e-05,2]
[408694910,1774134580221,1700.16,7.075e-05,2]
[408694911,1774134580413,1700.16,7.397e-05,2]
[408694912,1774134580611,1499.22,7.718e-05,2]
[408694913,1774134580634,200.94,7.718e-05,2]
[408694914,1774134580814,1700.16,8.04e-05,2]
[408694915,1774134581010,1700.16,8.361e-05,2]
[408694916,1774134581408,1398.75,8.683e-05,2]
[408694917,1774134581433,301.41,8.683e-05,2]
[408694918,1774134581778,1700.16,9.005e-05,2]
[408694919,1774134581821,1700.16,9.326e-05,2]
[408694920,1774134582015,1298.28,9.648e-05,2]
[408694921,1774134582037,401.88,9.648e-05,2]
[408694922,1774134582383,1700.16,9.969e-05,2]
[408694923,1774134582578,1700.16,0.00010291,2]
[408694924,1774134582776,1197.81,0.00010612,2]
[408694925,1774134582798,502.35,0.00010612,2]
[408694926,1774134583184,1700.16,0.00010934,2]
[408694927,1774134583392,1700.16,0.00011256,2]
[408694928,1774134583571,1097.34,0.00011577,2]
[408694929,1774134583592,602.82,0.00011577,2]
[408694930,1774134583766,1700.16,0.00011899,2]
[408694931,1774134583958,1700.16,0.0001222,2]
[408694932,1774134587071,996.87,0.00012723,2]
[408694933,1774134587092,5000.01,0.00012723,2]
[408694934,1774134587113,5000.01,0.00012723,2]
[408694935,1774134587134,5000.01,0.00012723,2]
[408694936,1774134587155,5000.01,0.00012723,2]
[408694937,1774134587177,5000.01,0.00012723,2]
[408694938,1774134587199,8000.01,0.00012723,2]
[408694939,1774134587233,10000.01,0.00012723,2]
[408694940,1774134587256,10000.01,0.00012723,2]
[408694941,1774134587279,10000.01,0.00012723,2]
[408694942,1774134587302,10000.01,0.00012723,2]
[408694943,1774134587325,10000.01,0.00012723,2]
[408694944,1774134587347,10000.01,0.00012723,2]
[408694945,1774134587369,10000.01,0.00012723,2]
[408694946,1774134587392,10000.01,0.00012723,2]
[408694947,1774134587416,10000.01,0.00012723,2]
[408694948,1774134593889,-4696.3383611,0.00012723,2]
[408694949,1774134594009,-5000.01,0.00012723,2]
[408694950,1774134601144,1200.0,0.00012722,2]
[408694951,1774134601170,300.0,0.00012722,2]
[408694952,1774134601743,300.0,0.00012722,2]
[408694953,1774134603222,1065.99,0.00011577,2]
[408694954,1774134603687,589.14291018,0.00011577,2]
[408694955,1774134604898,1544.87708982,0.00012705,2]
[408694956,1774134604923,3864.31090294,0.00012705,2]
[408694957,1774134605211,254.0,0.00012723,2]
[408694958,1774134611056,881.69909706,0.00011577,2]
[408694959,1774134611078,5000.01,0.00011577,2]
[408694960,1774134611098,2463.16799276,0.00011577,2]
[408694961,1774134611647,1938.79783966,0.00011577,2]
[408694962,1774134631316,-695.92687277,0.00012723,2]
[408694963,1774134631327,-887.77170059,0.00012723,2]
[408694964,1774134631338,-136676.76701086,0.00012723,2]
[408694965,1774134631350,-676.60347514,0.00012723,2]
[408694976,1774134637399,-837047.40393654,0.00012723,2]
[408694977,1774134637520,-1088.31860419,0.00012723,2]
[408694978,1774134637531,-609.7909645,0.00012723,2]
[408694979,1774134637542,-5374.16711633,0.00012723,2]
[408694980,1774134637579,-435.56076888,0.00012723,2]
[408695075,1774134639556,-472692.1501891,0.00012723,2]
[408695076,1774134639566,-250.0,0.00012806,2]
[408695077,1774134639576,-5000.0,0.00012811,2]
[408695078,1774134639586,-250.0,0.00012815,2]
[408695079,1774134639596,-5000.0,0.00012819,2]
[408695080,1774134639605,-150.0,0.00012822,2]
[408695081,1774134639615,-159.78885681,0.00012823,2]
[408695082,1774134639625,-2299.81306608,0.00012823,2]
[408695083,1774134639634,-663.45376804,0.00012823,2]
[408695084,1774134639644,-500.0,0.00012823,2]
[408695085,1774134639654,-32981.2159,0.00012823,2]
[408695086,1774134639663,-1000.0,0.00012823,2]
[408695087,1774134639672,-487.3722,0.00012823,2]
[408695088,1774134639681,-2500.0,0.00012823,2]
[408695089,1774134639691,-6209.87065696,0.0001283,2]
[408695090,1774134639700,-517.34,0.00012915,2]
[408695091,1774134639710,-3813.44,0.00012915,2]
[408695092,1774134639719,-430.89,0.00012915,2]
[408695093,1774134639728,-999.99,0.00012915,2]
[408695094,1774134639738,-9999.99,0.00012915,2]
[408695095,1774134639750,-200.0,0.00012915,2]
[408695096,1774134639760,-151.0,0.00012915,2]
[408695097,1774134639770,-151.0,0.00012915,2]
[408695098,1774134639779,-151.0,0.00012915,2]
[408695099,1774134639789,-151.0,0.00012915,2]
[408695100,1774134639798,-151.0,0.00012915,2]
[408695101,1774134639807,-228.67422982,0.00012915,2]
[408695102,1774134639816,-500.0,0.00012922,2]
[408695103,1774134639826,-299.99,0.00012922,2]
[408695104,1774134639835,-9999.99,0.00012922,2]
[408695105,1774134639845,-2172.26,0.00012922,2]
[408695106,1774134639854,-4999.99,0.00012922,2]
[408695107,1774134639864,-350.92,0.00012922,2]
[408695108,1774134639873,-150.99,0.00012922,2]
[408695109,1774134639882,-9999.99,0.00012922,2]
[408695110,1774134639892,-8494.37,0.00012922,2]
[408695111,1774134639901,-150.99,0.00012922,2]
[408695112,1774134639911,-278.73969079,0.00012922,2]
[408695113,1774134639921,-151.0,0.00012922,2]
[408695114,1774134639931,-500.0,0.00012922,2]
[408695115,1774134639940,-553.03889808,0.00012922,2]
[408695116,1774134639949,-500.0,0.00012922,2]
[408695117,1774134639960,-500.0,0.00012922,2]
[408695118,1774134639970,-500.0,0.00012922,2]
[408695119,1774134639979,-500.0,0.00012922,2]
[408695120,1774134639989,-500.0,0.00012922,2]
[408695121,1774134639998,-500.0,0.00012922,2]
[408695122,1774134640008,-500.0,0.00012922,2]
[408695123,1774134640017,-500.0,0.00012922,2]
[408695124,1774134640027,-500.0,0.00012922,2]
[408695125,1774134640036,-500.0,0.00012922,2]
[408695126,1774134640045,-500.0,0.00012922,2]
[408695127,1774134640054,-500.0,0.00012922,2]
[408695128,1774134640064,-500.0,0.00012922,2]
[408695129,1774134640074,-500.0,0.00012922,2]
[408695130,1774134640083,-500.0,0.00012922,2]
[408695131,1774134640093,-500.0,0.00012922,2]
[408695132,1774134640103,-500.0,0.00012922,2]
[408695133,1774134640113,-500.0,0.00012922,2]
[408695134,1774134640123,-500.0,0.00012922,2]
[408695135,1774134640136,-500.0,0.00012922,2]
[408695136,1774134640146,-500.0,0.00012922,2]
[408695137,1774134640156,-500.0,0.00012922,2]
[408695138,1774134640167,-500.0,0.00012922,2]
[408695139,1774134640177,-500.0,0.00012922,2]
[408695140,1774134640187,-500.0,0.00012922,2]
[408695141,1774134640197,-500.0,0.00012922,2]
[408695142,1774134640207,-500.0,0.00012922,2]
[408695143,1774134640217,-500.0,0.00012922,2]
[408695144,1774134640227,-500.0,0.00012922,2]
[408695145,1774134640237,-500.0,0.00012922,2]
[408695146,1774134640247,-500.0,0.00012922,2]
[408695148,1774134640258,-352.4520021,0.00012922,2]
[408695150,1774134640267,-500.0,0.00012922,2]
[408695151,1774134640277,-500.0,0.00012922,2]
[408695152,1774134640286,-500.0,0.00012922,2]
[408695153,1774134640295,-500.0,0.00012922,2]